Workbook

Sheet Instrukcijos
G1: INSTRUKCIJOS | H1: PAJAMOS
B2: ASMENINIS PINIGŲ SRAUTAS
B3: Šioje darbaknygėje yra metinis, mėnesio ir dienos pinigų srauto darbalapiai. Pasirinkite norimą naudoti pinigų srauto tipą arba naudokite juos visus, kad galėtume suprasti savo asmeninis pinigų srautas.
B5: Metinis pinigų srautas | D5: Mėnesio pinigų srautas | F5: Dienos pinigų srautas
B6: Įveskite įvairių sričių metinį pinigų srautą. Peržiūrėkite mėnesio analizę ir viską palyginkite, o svarbiausia – sužinokite, koks bendras metinių ir mėnesinių pinigų balansas. | D6: Įveskite kiekvieno mėnesio pinigų srautą arba apytikriai apskaičiuokite likusių mėnesių reikšmes, kad sužinotumėte kiekvieno metų mėnesio pinigų srautą. | F6: Įveskite apytikrį kasdienį pinigų srautą ir peržiūrėkite numatomas mėnesio ir metines sumas. Tai padarę, geriau suvoksite, kaip kasdieniai vartojimo įpročiai atrodys per mėnesį ar metus.

Sheet Metinis pinigų srautas
B1: ASMENINIS PINIGŲ SRAUTAS | G1: INSTRUKCIJOS | H1: METINIS PINIGŲ SRAUTAS | J1: MĖNESIO PINIGŲ SRAUTAS
B2: Bendras pinigų srautas iki šiol: | D2: =MetinisPinigųSrautasIkiŠiol -> 39,750.00 EUR | G2: Tai yra metinis apskaičiavimas. Naudokite šį darbalapį, jei norite peržiūrėti metines sumas su apytikrėmis mėnesio reikšmėmis. Įtraukite kasdienių elementų naudodami kitus darbalapius.
B3: PAJAMŲ SUVESTINĖ | F3: IŠLAIDŲ SUVESTINĖ | J3: NEBŪTINŲJŲ IŠLAIDŲ SUVESTINĖ | N3: SANTAUPŲ SUVESTINĖ
B4: Metinė suma: | C4: =Pajamos!C10 -> 125,000.00 EUR | F4: Metinė suma: | G4: =Išlaidos[[#Totals],[Metinis ]] -> 49,000.00 EUR | J4: Metinė suma: | K4: =Nebūtinosios_išlaidos[[#Totals],[Metinis ]] -> 13,250.00 EUR | N4: Metinė suma: | O4: =Santaupos[[#Totals],[Metinis ]] -> 23,000.00 EUR
B5: Šiame langelyje yra skritulinė diagrama, vaizduojanti pajamas iš įvairių šaltinių. | F5: Šiame langelyje yra skritulinė diagrama, vaizduojanti patirtas išlaidas. | J5: Šiame langelyje yra skritulinė diagrama, kurioje pateikiamos nebūtinosios išlaidos. | N5: Šiame langelyje yra skritulinė diagrama, kurioje pateikiamos santaupos ir investicijos.
B6: Mėnesio suma: | C6: =Pajamos!D10 -> 10,416.67 EUR | F6: Mėnesio suma: | G6: =Išlaidos[[#Totals],[Mėnesio ]] -> 4,083.33 EUR | J6: Mėnesio suma: | K6: =Nebūtinosios_išlaidos[[#Totals],[Mėnesio ]] -> 1,104.17 EUR | N6: Mėnesio suma: | O6: =Santaupos!D9 -> 1,916.67 EUR

Sheet Mėnesio pinigų srautas
B1: ASMENINIS PINIGŲ SRAUTAS | H1: INSTRUKCIJOS | I1: METINIS PINIGŲ SRAUTAS | J1: MĖNESIO PINIGŲ SRAUTAS | K1: DIENOS SUVESTINĖ
B2: Bendras mėnesio pinigų srautas: | D2: =MėnesioPinigųSrautasIkiŠiol -> 18,380.00 EUR | F2: PASTABA. Norėdami įtraukti kasdienius elementus, apytikriai apskaičiuokite mėnesio sumą / reikšmę ir įveskite tą reikšmę į atitinkamo mėnesio stulpelį.
B3: Tipas | C3: Aprašas | D3: Sausis | E3: Vasaris | F3: Kovas | G3: Balandis | H3: Gegužė | I3: Birželis | J3: Liepa | K3: Rugpjūtis | L3: Rugsėjis | M3: Spalis | N3: Lapkritis | O3: Gruodis | P3: Suma
B4: Pajamos | C4: Atlyginimas | D4: 7,500.00 EUR | E4: 7,500.00 EUR | F4: 7,500.00 EUR | G4: 7,500.00 EUR | H4: 7,500.00 EUR | I4: 7,500.00 EUR | P4: =SUM(Mėnesio[[#This Row],[Sausis]:[Gruodis]]) -> 45,000.00 EUR
B5: Pajamos | C5: Komisiniai / premijos | D5: 400.00 EUR | E5: 400.00 EUR | F5: 500.00 EUR | G5: 200.00 EUR | H5: 0.00 EUR | I5: 600.00 EUR | P5: =SUM(Mėnesio[[#This Row],[Sausis]:[Gruodis]]) -> 2,100.00 EUR
B6: Pajamos | C6: Kita 1 | D6: 2,500.00 EUR | E6: 2,500.00 EUR | F6: 2,500.00 EUR | G6: 2,500.00 EUR | H6: 2,500.00 EUR | I6: 2,500.00 EUR | P6: =SUM(Mėnesio[[#This Row],[Sausis]:[Gruodis]]) -> 15,000.00 EUR
B7: Pajamos | C7: Kita 2 | D7: 0.00 EUR | E7: 0.00 EUR | F7: 0.00 EUR | G7: 0.00 EUR | H7: 0.00 EUR | I7: 0.00 EUR | P7: =SUM(Mėnesio[[#This Row],[Sausis]:[Gruodis]]) -> 0.00 EUR
B8: Pajamos | C8: Kita 3 | D8: 0.00 EUR | E8: 0.00 EUR | F8: 0.00 EUR | G8: 0.00 EUR | H8: 0.00 EUR | I8: 0.00 EUR | P8: =SUM(Mėnesio[[#This Row],[Sausis]:[Gruodis]]) -> 0.00 EUR
B9: Pajamos | C9: Kita 4 | D9: 0.00 EUR | E9: 0.00 EUR | F9: 0.00 EUR | G9: 0.00 EUR | H9: 0.00 EUR | I9: 0.00 EUR | P9: =SUM(Mėnesio[[#This Row],[Sausis]:[Gruodis]]) -> 0.00 EUR
B10: Išlaidos | C10: Socialinės / sveikatos apsaugos santaupos | D10: 1,250.00 EUR | E10: 1,250.00 EUR | F10: 1,250.00 EUR | G10: 1,250.00 EUR | H10: 1,250.00 EUR | I10: 1,250.00 EUR | P10: =SUM(Mėnesio[[#This Row],[Sausis]:[Gruodis]]) -> 7,500.00 EUR
B11: Išlaidos | C11: Pajamų mokestis | D11: 208.33 EUR | E11: 208.33 EUR | F11: 208.33 EUR | G11: 208.33 EUR | H11: 208.33 EUR | I11: 208.33 EUR | P11: =SUM(Mėnesio[[#This Row],[Sausis]:[Gruodis]]) -> 1,250.00 EUR
B12: Išlaidos | C12: Transporto priemonės mokesčiai | D12: 16.67 EUR | E12: 16.67 EUR | F12: 16.67 EUR | G12: 16.67 EUR | H12: 16.67 EUR | I12: 16.67 EUR | P12: =SUM(Mėnesio[[#This Row],[Sausis]:[Gruodis]]) -> 100.00 EUR
B13: Išlaidos | C13: Mokėjimai už transporto priemonę | D13: 333.33 EUR | E13: 333.33 EUR | F13: 333.33 EUR | G13: 333.33 EUR | H13: 333.33 EUR | I13: 333.33 EUR | P13: =SUM(Mėnesio[[#This Row],[Sausis]:[Gruodis]]) -> 2,000.00 EUR
B14: Išlaidos | C14: Būsto paskola / nuoma | D14: 1,250.00 EUR | E14: 1,250.00 EUR | F14: 1,250.00 EUR | G14: 1,250.00 EUR | H14: 1,250.00 EUR | I14: 1,250.00 EUR | P14: =SUM(Mėnesio[[#This Row],[Sausis]:[Gruodis]]) -> 7,500.00 EUR
B15: Išlaidos | C15: Draudimas | D15: 25.00 EUR | E15: 25.00 EUR | F15: 25.00 EUR | G15: 25.00 EUR | H15: 25.00 EUR | I15: 25.00 EUR | P15: =SUM(Mėnesio[[#This Row],[Sausis]:[Gruodis]]) -> 150.00 EUR
B16: Išlaidos | C16: Elektra | D16: 100.00 EUR | E16: 100.00 EUR | F16: 100.00 EUR | G16: 100.00 EUR | H16: 100.00 EUR | I16: 100.00 EUR | P16: =SUM(Mėnesio[[#This Row],[Sausis]:[Gruodis]]) -> 600.00 EUR
B17: Išlaidos | C17: Dujos | D17: 50.00 EUR | E17: 50.00 EUR | F17: 50.00 EUR | G17: 50.00 EUR | H17: 50.00 EUR | I17: 50.00 EUR | P17: =SUM(Mėnesio[[#This Row],[Sausis]:[Gruodis]]) -> 300.00 EUR
B18: Išlaidos | C18: Vanduo | D18: 50.00 EUR | E18: 50.00 EUR | F18: 50.00 EUR | G18: 50.00 EUR | H18: 50.00 EUR | I18: 50.00 EUR | P18: =SUM(Mėnesio[[#This Row],[Sausis]:[Gruodis]]) -> 300.00 EUR
B19: Išlaidos | C19: Kanalizacija | D19: 25.00 EUR | E19: 25.00 EUR | F19: 25.00 EUR | G19: 25.00 EUR | H19: 25.00 EUR | I19: 25.00 EUR | P19: =SUM(Mėnesio[[#This Row],[Sausis]:[Gruodis]]) -> 150.00 EUR
B20: Išlaidos | C20: Šiukšlės | D20: 12.50 EUR | E20: 12.50 EUR | F20: 12.50 EUR | G20: 12.50 EUR | H20: 12.50 EUR | I20: 12.50 EUR | P20: =SUM(Mėnesio[[#This Row],[Sausis]:[Gruodis]]) -> 75.00 EUR
B21: Išlaidos | C21: Telefonas | D21: 50.00 EUR | E21: 50.00 EUR | F21: 50.00 EUR | G21: 50.00 EUR | H21: 50.00 EUR | I21: 50.00 EUR | P21: =SUM(Mėnesio[[#This Row],[Sausis]:[Gruodis]]) -> 300.00 EUR
B22: Išlaidos | C22: Internetas | D22: 50.00 EUR | E22: 50.00 EUR | F22: 50.00 EUR | G22: 50.00 EUR | H22: 50.00 EUR | I22: 50.00 EUR | P22: =SUM(Mėnesio[[#This Row],[Sausis]:[Gruodis]]) -> 300.00 EUR
B23: Išlaidos | C23: Gyvenimo / negalios draudimo įmokos | D23: 125.00 EUR | E23: 125.00 EUR | F23: 125.00 EUR | G23: 125.00 EUR | H23: 125.00 EUR | I23: 125.00 EUR | P23: =SUM(Mėnesio[[#This Row],[Sausis]:[Gruodis]]) -> 750.00 EUR
B24: Išlaidos | C24: Maistas | D24: 400.00 EUR | E24: 500.00 EUR | F24: 450.00 EUR | G24: 400.00 EUR | H24: 450.00 EUR | I24: 425.00 EUR | P24: =SUM(Mėnesio[[#This Row],[Sausis]:[Gruodis]]) -> 2,625.00 EUR
B25: Išlaidos | C25: Drabužiai | D25: 50.00 EUR | E25: 75.00 EUR | F25: 100.00 EUR | G25: 75.00 EUR | H25: 125.00 EUR | I25: 75.00 EUR | P25: =SUM(Mėnesio[[#This Row],[Sausis]:[Gruodis]]) -> 500.00 EUR
B26: Išlaidos | C26: Medicinos išlaidos | D26: 50.00 EUR | E26: 10.00 EUR | F26: 25.00 EUR | G26: 25.00 EUR | H26: 20.00 EUR | I26: 70.00 EUR | P26: =SUM(Mėnesio[[#This Row],[Sausis]:[Gruodis]]) -> 200.00 EUR
B27: Išlaidos | C27: Autobusas | D27: 30.00 EUR | E27: 30.00 EUR | F27: 30.00 EUR | G27: 20.00 EUR | H27: 30.00 EUR | I27: 30.00 EUR | P27: =SUM(Mėnesio[[#This Row],[Sausis]:[Gruodis]]) -> 170.00 EUR
B28: Išlaidos | C28: Kita 2 | D28: 0.00 EUR | E28: 0.00 EUR | F28: 0.00 EUR | G28: 0.00 EUR | H28: 0.00 EUR | I28: 0.00 EUR | P28: =SUM(Mėnesio[[#This Row],[Sausis]:[Gruodis]]) -> 0.00 EUR
B29: Išlaidos | C29: Kita 3 | D29: 0.00 EUR | E29: 0.00 EUR | F29: 0.00 EUR | G29: 0.00 EUR | H29: 0.00 EUR | I29: 0.00 EUR | P29: =SUM(Mėnesio[[#This Row],[Sausis]:[Gruodis]]) -> 0.00 EUR
B30: Išlaidos | C30: Kita 4 | D30: 0.00 EUR | E30: 0.00 EUR | F30: 0.00 EUR | G30: 0.00 EUR | H30: 0.00 EUR | I30: 0.00 EUR | P30: =SUM(Mėnesio[[#This Row],[Sausis]:[Gruodis]]) -> 0.00 EUR
B31: Nebūtinosios_išlaidos | C31: Restoranai | D31: 50.00 EUR | E31: 150.00 EUR | F31: 100.00 EUR | G31: 50.00 EUR | H31: 150.00 EUR | I31: 100.00 EUR | P31: =SUM(Mėnesio[[#This Row],[Sausis]:[Gruodis]]) -> 600.00 EUR
B32: Nebūtinosios_išlaidos | C32: Dovanos | D32: 25.00 EUR | E32: 75.00 EUR | F32: 50.00 EUR | G32: 25.00 EUR | H32: 75.00 EUR | I32: 50.00 EUR | P32: =SUM(Mėnesio[[#This Row],[Sausis]:[Gruodis]]) -> 300.00 EUR
B33: Nebūtinosios_išlaidos | C33: Kelionės | D33: 0.00 EUR | E33: 0.00 EUR | F33: 1,000.00 EUR | G33: 0.00 EUR | H33: 0.00 EUR | I33: 1,000.00 EUR | P33: =SUM(Mėnesio[[#This Row],[Sausis]:[Gruodis]]) -> 2,000.00 EUR
B34: Nebūtinosios_išlaidos | C34: Pramogos | D34: 50.00 EUR | E34: 150.00 EUR | F34: 100.00 EUR | G34: 50.00 EUR | H34: 150.00 EUR | I34: 100.00 EUR | P34: =SUM(Mėnesio[[#This Row],[Sausis]:[Gruodis]]) -> 600.00 EUR
B35: Nebūtinosios_išlaidos | C35: Asmens priežiūra | D35: 15.00 EUR | E35: 25.00 EUR | F35: 35.00 EUR | G35: 15.00 EUR | H35: 25.00 EUR | I35: 35.00 EUR | P35: =SUM(Mėnesio[[#This Row],[Sausis]:[Gruodis]]) -> 150.00 EUR
B36: Nebūtinosios_išlaidos | C36: Apsipirkimas | D36: 100.00 EUR | E36: 200.00 EUR | F36: 150.00 EUR | G36: 175.00 EUR | H36: 150.00 EUR | I36: 175.00 EUR | P36: =SUM(Mėnesio[[#This Row],[Sausis]:[Gruodis]]) -> 950.00 EUR
B37: Nebūtinosios_išlaidos | C37: Labdara | D37: 50.00 EUR | E37: 50.00 EUR | F37: 50.00 EUR | G37: 50.00 EUR | H37: 50.00 EUR | I37: 50.00 EUR | P37: =SUM(Mėnesio[[#This Row],[Sausis]:[Gruodis]]) -> 300.00 EUR
B38: Nebūtinosios_išlaidos | C38: Klubai / narystės | D38: 25.00 EUR | E38: 25.00 EUR | F38: 25.00 EUR | G38: 25.00 EUR | H38: 25.00 EUR | I38: 25.00 EUR | P38: =SUM(Mėnesio[[#This Row],[Sausis]:[Gruodis]]) -> 150.00 EUR
B39: Nebūtinosios_išlaidos | C39: Namų gerinimas | D39: 400.00 EUR | E39: 400.00 EUR | F39: 400.00 EUR | G39: 400.00 EUR | H39: 400.00 EUR | I39: 400.00 EUR | P39: =SUM(Mėnesio[[#This Row],[Sausis]:[Gruodis]]) -> 2,400.00 EUR
B40: Nebūtinosios_išlaidos | C40: Kita 1 | D40: 0.00 EUR | E40: 0.00 EUR | F40: 0.00 EUR | G40: 0.00 EUR | H40: 0.00 EUR | I40: 0.00 EUR | P40: =SUM(Mėnesio[[#This Row],[Sausis]:[Gruodis]]) -> 0.00 EUR
B41: Nebūtinosios_išlaidos | C41: Kita 2 | D41: 0.00 EUR | E41: 0.00 EUR | F41: 0.00 EUR | G41: 0.00 EUR | H41: 0.00 EUR | I41: 0.00 EUR | P41: =SUM(Mėnesio[[#This Row],[Sausis]:[Gruodis]]) -> 0.00 EUR
B42: Santaupos | C42: Pinigų atsargos | D42: 416.67 EUR | E42: 416.67 EUR | F42: 416.67 EUR | G42: 416.67 EUR | H42: 416.67 EUR | I42: 416.67 EUR | P42: =SUM(Mėnesio[[#This Row],[Sausis]:[Gruodis]]) -> 2,500.00 EUR
B43: Santaupos | C43: Pensijų fondai ir kt. | D43: 1,000.00 EUR | E43: 1,000.00 EUR | F43: 1,000.00 EUR | G43: 1,000.00 EUR | H43: 1,000.00 EUR | I43: 1,000.00 EUR | P43: =SUM(Mėnesio[[#This Row],[Sausis]:[Gruodis]]) -> 6,000.00 EUR
B44: Santaupos | C44: Taupomoji / investicinė sąskaita | D44: 500.00 EUR | E44: 500.00 EUR | F44: 500.00 EUR | G44: 500.00 EUR | H44: 500.00 EUR | I44: 500.00 EUR | P44: =SUM(Mėnesio[[#This Row],[Sausis]:[Gruodis]]) -> 3,000.00 EUR
B45: Santaupos | C45: Kita 1 | D45: 0.00 EUR | E45: 0.00 EUR | F45: 0.00 EUR | G45: 0.00 EUR | H45: 0.00 EUR | I45: 0.00 EUR | P45: =SUM(Mėnesio[[#This Row],[Sausis]:[Gruodis]]) -> 0.00 EUR
B46: Santaupos | C46: Kita 2 | D46: 0.00 EUR | E46: 0.00 EUR | F46: 0.00 EUR | G46: 0.00 EUR | H46: 0.00 EUR | I46: 0.00 EUR | P46: =SUM(Mėnesio[[#This Row],[Sausis]:[Gruodis]]) -> 0.00 EUR
B47: Suma | D47: =SUMIF(Mėnesio[Tipas],"Pajamos",Mėnesio[Sausis])-SUMIF(Mėnesio[Tipas],"<>Pajamos",Mėnesio[Sausis]) -> 3,692.50 EUR | E47: =SUMIF(Mėnesio[Tipas],"Pajamos",Mėnesio[Vasaris])-SUMIF(Mėnesio[Tipas],"<>Pajamos",Mėnesio[Vasaris]) -> 3,247.50 EUR | F47: =SUMIF(Mėnesio[Tipas],"Pajamos",Mėnesio[Kovas])-SUMIF(Mėnesio[Tipas],"<>Pajamos",Mėnesio[Kovas]) -> 2,522.50 EUR | G47: =SUMIF(Mėnesio[Tipas],"Pajamos",Mėnesio[Balandis])-SUMIF(Mėnesio[Tipas],"<>Pajamos",Mėnesio[Balandis]) -> 3,427.50 EUR | H47: =SUMIF(Mėnesio[Tipas],"Pajamos",Mėnesio[Gegužė])-SUMIF(Mėnesio[Tipas],"<>Pajamos",Mėnesio[Gegužė]) -> 2,887.50 EUR | I47: =SUMIF(Mėnesio[Tipas],"Pajamos",Mėnesio[Birželis])-SUMIF(Mėnesio[Tipas],"<>Pajamos",Mėnesio[Birželis]) -> 2,602.50 EUR | J47: =SUMIF(Mėnesio[Tipas],"Pajamos",Mėnesio[Liepa])-SUMIF(Mėnesio[Tipas],"<>Pajamos",Mėnesio[Liepa]) -> 0.00 EUR | K47: =SUMIF(Mėnesio[Tipas],"Pajamos",Mėnesio[Rugpjūtis])-SUMIF(Mėnesio[Tipas],"<>Pajamos",Mėnesio[Rugpjūtis]) -> 0.00 EUR | L47: =SUMIF(Mėnesio[Tipas],"Pajamos",Mėnesio[Rugsėjis])-SUMIF(Mėnesio[Tipas],"<>Pajamos",Mėnesio[Rugsėjis]) -> 0.00 EUR | M47: =SUMIF(Mėnesio[Tipas],"Pajamos",Mėnesio[Spalis])-SUMIF(Mėnesio[Tipas],"<>Pajamos",Mėnesio[Spalis]) -> 0.00 EUR | N47: =SUMIF(Mėnesio[Tipas],"Pajamos",Mėnesio[Lapkritis])-SUMIF(Mėnesio[Tipas],"<>Pajamos",Mėnesio[Lapkritis]) -> 0.00 EUR | O47: =SUMIF(Mėnesio[Tipas],"Pajamos",Mėnesio[Gruodis])-SUMIF(Mėnesio[Tipas],"<>Pajamos",Mėnesio[Gruodis]) -> 0.00 EUR | P47: =SUMIF(Mėnesio[Tipas],"Pajamos",Mėnesio[Suma])-SUMIF(Mėnesio[Tipas],"<>Pajamos",Mėnesio[Suma]) -> 18,380.00 EUR

Sheet Dienos suvestinė
B1: ASMENINIS PINIGŲ SRAUTAS | F1: INSTRUKCIJOS | G1: MĖNESIO PINIGŲ SRAUTAS | H1: DIENOS SUVESTINĖ | I1: PAJAMOS
B2: Visi turimi pinigai: | D2: =DienosPinigųSrautas -> 577.84 EUR | F2: PASTABA. Jei į lentelę norite įtraukti kasdienius elementus, apytikriai apskaičiuokite mėnesio sumą / reikšmę ir įveskite tą reikšmę į atitinkamo mėnesio stulpelį.
B3: DIENOS SUVESTINĖ
B4: BENDROSIOS SUMOS | C4: Dienos suma | D4: Mėnesio | E4: Metinis
B5: Pajamos | C5: =SUMIF(Dienos_suma[Tipas],$B5,Dienos_suma[Dienos suma]) -> 342.47 EUR | D5: =SUMIF(Dienos_suma[Tipas],$B5,Dienos_suma[Mėnesio]) -> 10,416.80 EUR | E5: =SUMIF(Dienos_suma[Tipas],$B5,Dienos_suma[Metinis]) -> 125,001.55 EUR
B6: Išlaidos | C6: =SUMIF(Dienos_suma[Tipas],$B6,Dienos_suma[Dienos suma]) -> 136.06 EUR | D6: =SUMIF(Dienos_suma[Tipas],$B6,Dienos_suma[Mėnesio]) -> 4,138.49 EUR | E6: =SUMIF(Dienos_suma[Tipas],$B6,Dienos_suma[Metinis]) -> 49,661.90 EUR
B7: Nebūtinosios_išlaidos | C7: =SUMIF(Dienos_suma[Tipas],$B7,Dienos_suma[Dienos suma]) -> 36.29 EUR | D7: =SUMIF(Dienos_suma[Tipas],$B7,Dienos_suma[Mėnesio]) -> 1,103.82 EUR | E7: =SUMIF(Dienos_suma[Tipas],$B7,Dienos_suma[Metinis]) -> 13,245.85 EUR
B8: Santaupos | C8: =SUMIF(Dienos_suma[Tipas],$B8,Dienos_suma[Dienos suma]) -> 63.02 EUR | D8: =SUMIF(Dienos_suma[Tipas],$B8,Dienos_suma[Mėnesio]) -> 1,916.86 EUR | E8: =SUMIF(Dienos_suma[Tipas],$B8,Dienos_suma[Metinis]) -> 23,002.30 EUR
B9: Tipas | C9: Aprašas | D9: Dienos suma | E9: Mėnesio | F9: Metinis
B10: Pajamos | C10: Atlyginimas | D10: 246.58 EUR | E10: =Dienos_suma[[#This Row],[Metinis]]/12 -> 7,500.14 EUR | F10: =Dienos_suma[[#This Row],[Dienos suma]]*365 -> 90,001.70 EUR
B11: Pajamos | C11: Komisiniai / premijos | D11: 13.70 EUR | E11: =Dienos_suma[[#This Row],[Metinis]]/12 -> 416.71 EUR | F11: =Dienos_suma[[#This Row],[Dienos suma]]*365 -> 5,000.50 EUR
B12: Pajamos | C12: Kita 1 | D12: 82.19 EUR | E12: =Dienos_suma[[#This Row],[Metinis]]/12 -> 2,499.95 EUR | F12: =Dienos_suma[[#This Row],[Dienos suma]]*365 -> 29,999.35 EUR
B13: Pajamos | C13: Kita 2 | D13: 0.00 EUR | E13: =Dienos_suma[[#This Row],[Metinis]]/12 -> 0.00 EUR | F13: =Dienos_suma[[#This Row],[Dienos suma]]*365 -> 0.00 EUR
B14: Pajamos | C14: Kita 3 | D14: 0.00 EUR | E14: =Dienos_suma[[#This Row],[Metinis]]/12 -> 0.00 EUR | F14: =Dienos_suma[[#This Row],[Dienos suma]]*365 -> 0.00 EUR
B15: Pajamos | C15: Kita 4 | D15: 0.00 EUR | E15: =Dienos_suma[[#This Row],[Metinis]]/12 -> 0.00 EUR | F15: =Dienos_suma[[#This Row],[Dienos suma]]*365 -> 0.00 EUR
B16: Išlaidos | C16: Socialinės / sveikatos apsaugos santaupos | D16: 41.10 EUR | E16: =Dienos_suma[[#This Row],[Metinis]]/12 -> 1,250.13 EUR | F16: =Dienos_suma[[#This Row],[Dienos suma]]*365 -> 15,001.50 EUR
B17: Išlaidos | C17: Pajamų mokestis | D17: 6.85 EUR | E17: =Dienos_suma[[#This Row],[Metinis]]/12 -> 208.35 EUR | F17: =Dienos_suma[[#This Row],[Dienos suma]]*365 -> 2,500.25 EUR
B18: Išlaidos | C18: Transporto priemonės mokesčiai | D18: 0.55 EUR | E18: =Dienos_suma[[#This Row],[Metinis]]/12 -> 16.73 EUR | F18: =Dienos_suma[[#This Row],[Dienos suma]]*365 -> 200.75 EUR
B19: Išlaidos | C19: Mokėjimai už transporto priemonę | D19: 10.96 EUR | E19: =Dienos_suma[[#This Row],[Metinis]]/12 -> 333.37 EUR | F19: =Dienos_suma[[#This Row],[Dienos suma]]*365 -> 4,000.40 EUR
B20: Išlaidos | C20: Būsto paskola / nuoma | D20: 41.10 EUR | E20: =Dienos_suma[[#This Row],[Metinis]]/12 -> 1,250.13 EUR | F20: =Dienos_suma[[#This Row],[Dienos suma]]*365 -> 15,001.50 EUR
B21: Išlaidos | C21: Draudimas | D21: 0.68 EUR | E21: =Dienos_suma[[#This Row],[Metinis]]/12 -> 20.68 EUR | F21: =Dienos_suma[[#This Row],[Dienos suma]]*365 -> 248.20 EUR
B22: Išlaidos | C22: Elektra | D22: 3.29 EUR | E22: =Dienos_suma[[#This Row],[Metinis]]/12 -> 100.07 EUR | F22: =Dienos_suma[[#This Row],[Dienos suma]]*365 -> 1,200.85 EUR
B23: Išlaidos | C23: Dujos | D23: 1.64 EUR | E23: =Dienos_suma[[#This Row],[Metinis]]/12 -> 49.88 EUR | F23: =Dienos_suma[[#This Row],[Dienos suma]]*365 -> 598.60 EUR
B24: Išlaidos | C24: Vanduo | D24: 1.64 EUR | E24: =Dienos_suma[[#This Row],[Metinis]]/12 -> 49.88 EUR | F24: =Dienos_suma[[#This Row],[Dienos suma]]*365 -> 598.60 EUR
B25: Išlaidos | C25: Kanalizacija | D25: 0.82 EUR | E25: =Dienos_suma[[#This Row],[Metinis]]/12 -> 24.94 EUR | F25: =Dienos_suma[[#This Row],[Dienos suma]]*365 -> 299.30 EUR
B26: Išlaidos | C26: Šiukšlės | D26: 0.41 EUR | E26: =Dienos_suma[[#This Row],[Metinis]]/12 -> 12.47 EUR | F26: =Dienos_suma[[#This Row],[Dienos suma]]*365 -> 149.65 EUR
B27: Išlaidos | C27: Telefonas | D27: 1.64 EUR | E27: =Dienos_suma[[#This Row],[Metinis]]/12 -> 49.88 EUR | F27: =Dienos_suma[[#This Row],[Dienos suma]]*365 -> 598.60 EUR
B28: Išlaidos | C28: Internetas | D28: 1.64 EUR | E28: =Dienos_suma[[#This Row],[Metinis]]/12 -> 49.88 EUR | F28: =Dienos_suma[[#This Row],[Dienos suma]]*365 -> 598.60 EUR
B29: Išlaidos | C29: Gyvenimo / negalios draudimo įmokos | D29: 4.11 EUR | E29: =Dienos_suma[[#This Row],[Metinis]]/12 -> 125.01 EUR | F29: =Dienos_suma[[#This Row],[Dienos suma]]*365 -> 1,500.15 EUR
B30: Išlaidos | C30: Maistas | D30: 13.70 EUR | E30: =Dienos_suma[[#This Row],[Metinis]]/12 -> 416.71 EUR | F30: =Dienos_suma[[#This Row],[Dienos suma]]*365 -> 5,000.50 EUR
B31: Išlaidos | C31: Drabužiai | D31: 3.29 EUR | E31: =Dienos_suma[[#This Row],[Metinis]]/12 -> 100.07 EUR | F31: =Dienos_suma[[#This Row],[Dienos suma]]*365 -> 1,200.85 EUR
B32: Išlaidos | C32: Medicinos išlaidos | D32: 1.64 EUR | E32: =Dienos_suma[[#This Row],[Metinis]]/12 -> 49.88 EUR | F32: =Dienos_suma[[#This Row],[Dienos suma]]*365 -> 598.60 EUR
B33: Išlaidos | C33: Autobusas | D33: 1.00 EUR | E33: =Dienos_suma[[#This Row],[Metinis]]/12 -> 30.42 EUR | F33: =Dienos_suma[[#This Row],[Dienos suma]]*365 -> 365.00 EUR
B34: Išlaidos | C34: Kita 2 | D34: 0.00 EUR | E34: =Dienos_suma[[#This Row],[Metinis]]/12 -> 0.00 EUR | F34: =Dienos_suma[[#This Row],[Dienos suma]]*365 -> 0.00 EUR
B35: Išlaidos | C35: Kita 3 | D35: 0.00 EUR | E35: =Dienos_suma[[#This Row],[Metinis]]/12 -> 0.00 EUR | F35: =Dienos_suma[[#This Row],[Dienos suma]]*365 -> 0.00 EUR
B36: Išlaidos | C36: Kita 4 | D36: 0.00 EUR | E36: =Dienos_suma[[#This Row],[Metinis]]/12 -> 0.00 EUR | F36: =Dienos_suma[[#This Row],[Dienos suma]]*365 -> 0.00 EUR
B37: Nebūtinosios_išlaidos | C37: Restoranai | D37: 3.29 EUR | E37: =Dienos_suma[[#This Row],[Metinis]]/12 -> 100.07 EUR | F37: =Dienos_suma[[#This Row],[Dienos suma]]*365 -> 1,200.85 EUR
B38: Nebūtinosios_išlaidos | C38: Dovanos | D38: 1.64 EUR | E38: =Dienos_suma[[#This Row],[Metinis]]/12 -> 49.88 EUR | F38: =Dienos_suma[[#This Row],[Dienos suma]]*365 -> 598.60 EUR
B39: Nebūtinosios_išlaidos | C39: Kelionės | D39: 6.16 EUR | E39: =Dienos_suma[[#This Row],[Metinis]]/12 -> 187.37 EUR | F39: =Dienos_suma[[#This Row],[Dienos suma]]*365 -> 2,248.40 EUR
B40: Nebūtinosios_išlaidos | C40: Pramogos | D40: 3.29 EUR | E40: =Dienos_suma[[#This Row],[Metinis]]/12 -> 100.07 EUR | F40: =Dienos_suma[[#This Row],[Dienos suma]]*365 -> 1,200.85 EUR
B41: Nebūtinosios_išlaidos | C41: Asmens priežiūra | D41: 0.82 EUR | E41: =Dienos_suma[[#This Row],[Metinis]]/12 -> 24.94 EUR | F41: =Dienos_suma[[#This Row],[Dienos suma]]*365 -> 299.30 EUR
B42: Nebūtinosios_išlaidos | C42: Apsipirkimas | D42: 5.48 EUR | E42: =Dienos_suma[[#This Row],[Metinis]]/12 -> 166.68 EUR | F42: =Dienos_suma[[#This Row],[Dienos suma]]*365 -> 2,000.20 EUR
B43: Nebūtinosios_išlaidos | C43: Labdara | D43: 1.64 EUR | E43: =Dienos_suma[[#This Row],[Metinis]]/12 -> 49.88 EUR | F43: =Dienos_suma[[#This Row],[Dienos suma]]*365 -> 598.60 EUR
B44: Nebūtinosios_išlaidos | C44: Klubai / narystės | D44: 0.82 EUR | E44: =Dienos_suma[[#This Row],[Metinis]]/12 -> 24.94 EUR | F44: =Dienos_suma[[#This Row],[Dienos suma]]*365 -> 299.30 EUR
B45: Nebūtinosios_išlaidos | C45: Namų gerinimas | D45: 13.15 EUR | E45: =Dienos_suma[[#This Row],[Metinis]]/12 -> 399.98 EUR | F45: =Dienos_suma[[#This Row],[Dienos suma]]*365 -> 4,799.75 EUR
B46: Nebūtinosios_išlaidos | C46: Kita 1 | D46: 0.00 EUR | E46: =Dienos_suma[[#This Row],[Metinis]]/12 -> 0.00 EUR | F46: =Dienos_suma[[#This Row],[Dienos suma]]*365 -> 0.00 EUR
B47: Nebūtinosios_išlaidos | C47: Kita 2 | D47: 0.00 EUR | E47: =Dienos_suma[[#This Row],[Metinis]]/12 -> 0.00 EUR | F47: =Dienos_suma[[#This Row],[Dienos suma]]*365 -> 0.00 EUR
B48: Santaupos | C48: Pinigų atsargos | D48: 13.70 EUR | E48: =Dienos_suma[[#This Row],[Metinis]]/12 -> 416.71 EUR | F48: =Dienos_suma[[#This Row],[Dienos suma]]*365 -> 5,000.50 EUR
B49: Santaupos | C49: Pensijų fondai ir kt. | D49: 32.88 EUR | E49: =Dienos_suma[[#This Row],[Metinis]]/12 -> 1,000.10 EUR | F49: =Dienos_suma[[#This Row],[Dienos suma]]*365 -> 12,001.20 EUR
B50: Santaupos | C50: Taupomoji / investicinė sąskaita | D50: 16.44 EUR | E50: =Dienos_suma[[#This Row],[Metinis]]/12 -> 500.05 EUR | F50: =Dienos_suma[[#This Row],[Dienos suma]]*365 -> 6,000.60 EUR
B51: Santaupos | C51: Kita 1 | D51: 0.00 EUR | E51: =Dienos_suma[[#This Row],[Metinis]]/12 -> 0.00 EUR | F51: =Dienos_suma[[#This Row],[Dienos suma]]*365 -> 0.00 EUR
B52: Santaupos | C52: Kita 2 | D52: 0.00 EUR | E52: =Dienos_suma[[#This Row],[Metinis]]/12 -> 0.00 EUR | F52: =Dienos_suma[[#This Row],[Dienos suma]]*365 -> 0.00 EUR
B53: Suma | D53: =SUMIF(Dienos_suma[Tipas],"Pajamos",Dienos_suma[Dienos suma])-SUMIF(Dienos_suma[Tipas],"<>Pajamos",Dienos_suma[Dienos suma]) -> EUR 107.10 | E53: =SUMIF(Dienos_suma[Tipas],"Pajamos",Dienos_suma[Mėnesio])-SUMIF(Dienos_suma[Tipas],"<>Pajamos",Dienos_suma[Mėnesio]) -> EUR 3,257.63 | F53: =SUMIF(Dienos_suma[Tipas],"Pajamos",Dienos_suma[Metinis])-SUMIF(Dienos_suma[Tipas],"<>Pajamos",Dienos_suma[Metinis]) -> EUR 39,091.50

Sheet Pajamos
B1: ASMENINIS PINIGŲ SRAUTAS | F1: INSTRUKCIJOS | G1: DIENOS SUVESTINĖ | H1: PAJAMOS | I1: IŠLAIDOS
B2: Bendras pinigų srautas iki šiol: | D2: =MetinisPinigųSrautasIkiŠiol -> 39,750.00 EUR | F2: Tai yra metinis apskaičiavimas. Naudokite šį darbalapį, jei norite peržiūrėti metines sumas su apytikrėmis mėnesio reikšmėmis Jei į lenteles norite įtraukti dienos elementus, apytikriai apskaičiuokite metinę sumą / reikšmę ir įveskite reikšmę stulpelyje Metinė.
B3: Pajamos | C3: Metinis | D3: Mėnesio
B4: Atlyginimas | C4: 90,000.00 EUR | D4: =Pajamos[[#This Row],[Metinis ]]/12 -> 7,500.00 EUR
B5: Komisiniai / premijos | C5: 5,000.00 EUR | D5: =Pajamos[[#This Row],[Metinis ]]/12 -> 416.67 EUR
B6: Kita 1 | C6: 30,000.00 EUR | D6: =Pajamos[[#This Row],[Metinis ]]/12 -> 2,500.00 EUR
B7: Kita 2 | D7: =Pajamos[[#This Row],[Metinis ]]/12 -> 0.00 EUR
B8: Kita 3 | D8: =Pajamos[[#This Row],[Metinis ]]/12 -> 0.00 EUR
B9: Kita 4 | D9: =Pajamos[[#This Row],[Metinis ]]/12 -> 0.00 EUR
B10: Suma | C10: =SUBTOTAL(109,Pajamos[[Metinis ]]) -> 125,000.00 EUR | D10: =SUBTOTAL(109,Pajamos[[Mėnesio ]]) -> 10,416.67 EUR

Sheet Išlaidos
B1: ASMENINIS PINIGŲ SRAUTAS | F1: INSTRUKCIJOS | G1: PAJAMOS | H1: IŠLAIDOS | I1: NEBŪTINOSIOS IŠLAIDOS
B2: Bendras pinigų srautas iki šiol: | D2: =MetinisPinigųSrautasIkiŠiol -> 39,750.00 EUR | F2: Tai yra metinis apskaičiavimas. Naudokite šį darbalapį, jei norite peržiūrėti metines sumas su apytikrėmis mėnesio reikšmėmis Jei į lenteles norite įtraukti dienos elementus, apytikriai apskaičiuokite metinę sumą / reikšmę ir įveskite reikšmę stulpelyje Metinė.
B3: Išlaidos | C3: Metinis | D3: Mėnesio
B4: Socialinės / sveikatos apsaugos santaupos | C4: 15,000.00 EUR | D4: =Išlaidos[[#This Row],[Metinis ]]/12 -> 1,250.00 EUR
B5: Pajamų mokestis | C5: 2,500.00 EUR | D5: =Išlaidos[[#This Row],[Metinis ]]/12 -> 208.33 EUR
B6: Transporto priemonės mokesčiai | C6: 200.00 EUR | D6: =Išlaidos[[#This Row],[Metinis ]]/12 -> 16.67 EUR
B7: Mokėjimai už transporto priemonę | C7: 4,000.00 EUR | D7: =Išlaidos[[#This Row],[Metinis ]]/12 -> 333.33 EUR
B8: Būsto paskola / nuoma | C8: 15,000.00 EUR | D8: =Išlaidos[[#This Row],[Metinis ]]/12 -> 1,250.00 EUR
B9: Draudimas | C9: 250.00 EUR | D9: =Išlaidos[[#This Row],[Metinis ]]/12 -> 20.83 EUR
B10: Elektra | C10: 1,200.00 EUR | D10: =Išlaidos[[#This Row],[Metinis ]]/12 -> 100.00 EUR
B11: Dujos | C11: 600.00 EUR | D11: =Išlaidos[[#This Row],[Metinis ]]/12 -> 50.00 EUR
B12: Vanduo / kanalizacija | C12: 600.00 EUR | D12: =Išlaidos[[#This Row],[Metinis ]]/12 -> 50.00 EUR
B13: Šiukšlės | C13: 150.00 EUR | D13: =Išlaidos[[#This Row],[Metinis ]]/12 -> 12.50 EUR
B14: Telefonas | C14: 600.00 EUR | D14: =Išlaidos[[#This Row],[Metinis ]]/12 -> 50.00 EUR
B15: Internetas | C15: 600.00 EUR | D15: =Išlaidos[[#This Row],[Metinis ]]/12 -> 50.00 EUR
B16: Gyvenimo / negalios draudimo įmokos | C16: 1,500.00 EUR | D16: =Išlaidos[[#This Row],[Metinis ]]/12 -> 125.00 EUR
B17: Maistas | C17: 5,000.00 EUR | D17: =Išlaidos[[#This Row],[Metinis ]]/12 -> 416.67 EUR
B18: Drabužiai | C18: 1,200.00 EUR | D18: =Išlaidos[[#This Row],[Metinis ]]/12 -> 100.00 EUR
B19: Medicinos išlaidos | C19: 600.00 EUR | D19: =Išlaidos[[#This Row],[Metinis ]]/12 -> 50.00 EUR
B20: Kita 1 | D20: =Išlaidos[[#This Row],[Metinis ]]/12 -> 0.00 EUR
B21: Kita 2 | D21: =Išlaidos[[#This Row],[Metinis ]]/12 -> 0.00 EUR
B22: Suma | C22: =SUBTOTAL(109,Išlaidos[[Metinis ]]) -> 49,000.00 EUR | D22: =SUBTOTAL(109,Išlaidos[[Mėnesio ]]) -> 4,083.33 EUR

Sheet Nebūtinosios išlaidos
B1: ASMENINIS PINIGŲ SRAUTAS | F1: INSTRUKCIJOS | G1: IŠLAIDOS | H1: NEBŪTINOSIOS IŠLAIDOS | I1: SANTAUPOS
B2: Bendras pinigų srautas iki šiol: | D2: =MetinisPinigųSrautasIkiŠiol -> 39,750.00 EUR | F2: Tai yra metinis apskaičiavimas. Naudokite šį darbalapį, jei norite peržiūrėti metines sumas su apytikrėmis mėnesio reikšmėmis Jei į lenteles norite įtraukti dienos elementus, apytikriai apskaičiuokite metinę sumą / reikšmę ir įveskite reikšmę stulpelyje Metinė.
B3: Nebūtinosios išlaidos | C3: Metinis | D3: Mėnesio
B4: Restoranai | C4: 1,200.00 EUR | D4: =Nebūtinosios_išlaidos[[#This Row],[Metinis ]]/12 -> 100.00 EUR
B5: Dovanos | C5: 600.00 EUR | D5: =Nebūtinosios_išlaidos[[#This Row],[Metinis ]]/12 -> 50.00 EUR
B6: Kelionės | C6: 2,250.00 EUR | D6: =Nebūtinosios_išlaidos[[#This Row],[Metinis ]]/12 -> 187.50 EUR
B7: Pramogos | C7: 1,200.00 EUR | D7: =Nebūtinosios_išlaidos[[#This Row],[Metinis ]]/12 -> 100.00 EUR
B8: Asmens priežiūra | C8: 300.00 EUR | D8: =Nebūtinosios_išlaidos[[#This Row],[Metinis ]]/12 -> 25.00 EUR
B9: Apsipirkimas | C9: 2,000.00 EUR | D9: =Nebūtinosios_išlaidos[[#This Row],[Metinis ]]/12 -> 166.67 EUR
B10: Labdara | C10: 600.00 EUR | D10: =Nebūtinosios_išlaidos[[#This Row],[Metinis ]]/12 -> 50.00 EUR
B11: Klubai / narystės | C11: 300.00 EUR | D11: =Nebūtinosios_išlaidos[[#This Row],[Metinis ]]/12 -> 25.00 EUR
B12: Namų gerinimas | C12: 4,800.00 EUR | D12: =Nebūtinosios_išlaidos[[#This Row],[Metinis ]]/12 -> 400.00 EUR
B13: Kita 1 | D13: =Nebūtinosios_išlaidos[[#This Row],[Metinis ]]/12 -> 0.00 EUR
B14: Kita 2 | D14: =Nebūtinosios_išlaidos[[#This Row],[Metinis ]]/12 -> 0.00 EUR
B15: Suma | C15: =SUBTOTAL(109,Nebūtinosios_išlaidos[[Metinis ]]) -> 13,250.00 EUR | D15: =SUBTOTAL(109,Nebūtinosios_išlaidos[[Mėnesio ]]) -> 1,104.17 EUR

Sheet Santaupos
B1: ASMENINIS PINIGŲ SRAUTAS | F1: INSTRUKCIJOS | G1: NEBŪTINOSIOS IŠLAIDOS | H1: SANTAUPOS
B2: Bendras pinigų srautas iki šiol: | D2: =MetinisPinigųSrautasIkiŠiol -> 39,750.00 EUR | F2: Tai yra metinis apskaičiavimas. Naudokite šį darbalapį, jei norite peržiūrėti metines sumas su apytikrėmis mėnesio reikšmėmis Jei į lenteles norite įtraukti dienos elementus, apytikriai apskaičiuokite metinę sumą / reikšmę ir įveskite reikšmę stulpelyje Metinė.
B3: Santaupos | C3: Metinis | D3: Mėnesio
B4: Pinigų atsargos | C4: 5,000.00 EUR | D4: =Santaupos[[#This Row],[Metinis ]]/12 -> 416.67 EUR
B5: Pensijų fondai ir kt. | C5: 12,000.00 EUR | D5: =Santaupos[[#This Row],[Metinis ]]/12 -> 1,000.00 EUR
B6: Santaupos / investavimas | C6: 6,000.00 EUR | D6: =Santaupos[[#This Row],[Metinis ]]/12 -> 500.00 EUR
B7: Kita 1 | D7: =Santaupos[[#This Row],[Metinis ]]/12 -> 0.00 EUR
B8: Kita 2 | D8: =Santaupos[[#This Row],[Metinis ]]/12 -> 0.00 EUR
B9: Suma | C9: =SUBTOTAL(109,Santaupos[[Metinis ]]) -> 23,000.00 EUR | D9: =SUBTOTAL(109,Santaupos[[Mėnesio ]]) -> 1,916.67 EUR
